[Event "Titled Tuesday Blitz July 18 Early 2023"]
[White "Ishowmoves57"]
[Black "Saucey, Michel"]
[BlackFideId "601845"]
[WhiteElo "2127"]
[BlackElo "2315"]
[Result "0-1"]
[Round "6"]
[TimeControl "180+2"]
[Date "2023.07.18"]
[WhiteClock "0:00:00"]
[BlackClock "0:00:12"]
[Board "178"]

1. e4 {[%clk 0:03:00]}  c5 {[%clk 0:02:59]} 2. Nf3 {[%clk 0:03:00]}  e6 {[%clk 0:02:59]} 3. d4 {[%clk 0:02:59]}  cxd4 {[%clk 0:02:59]} 4. Nxd4 {[%clk 0:03:00]}  Nc6 {[%clk 0:02:59]} 5. Nc3 {[%clk 0:02:57]}  Qc7 {[%clk 0:02:59]} 6. Be3 {[%clk 0:02:52]}  a6 {[%clk 0:02:59]} 7. Nxc6 {[%clk 0:02:49]}  bxc6 {[%clk 0:02:58]} 8. f4 {[%clk 0:02:47]}  d5 {[%clk 0:02:56]} 9. Be2 {[%clk 0:02:44]}  Nf6 {[%clk 0:02:54]} 10. Bf3 {[%clk 0:02:44]}  Be7 {[%clk 0:02:48]} 11. O-O {[%clk 0:02:43]}  O-O {[%clk 0:02:46]} 12. Bd4 {[%clk 0:02:28]}  Bb7 {[%clk 0:02:34]} 13. Kh1 {[%clk 0:02:21]}  Rfd8 {[%clk 0:02:29]} 14. Be5 {[%clk 0:02:18]}  Qa5 {[%clk 0:02:23]} 15. exd5 {[%clk 0:02:04]}  cxd5 {[%clk 0:02:19]} 16. f5 {[%clk 0:02:01]}  exf5 {[%clk 0:01:55]} 17. Qd4 {[%clk 0:01:49]}  Rac8 {[%clk 0:01:39]} 18. Be2 {[%clk 0:01:32]}  Qc5 {[%clk 0:01:28]} 19. Rxf5 {[%clk 0:01:22]}  Qxd4 {[%clk 0:01:27]} 20. Bxd4 {[%clk 0:01:23]}  Ne4 {[%clk 0:01:25]} 21. Bd3 {[%clk 0:01:15]}  g6 {[%clk 0:01:22]} 22. Rff1 {[%clk 0:01:00]}  f5 {[%clk 0:01:21]} 23. Rad1 {[%clk 0:00:54]}  h5 {[%clk 0:01:16]} 24. Ne2 {[%clk 0:00:52]}  Bd6 {[%clk 0:01:07]} 25. Nf4 {[%clk 0:00:47]}  Bxf4 {[%clk 0:01:07]} 26. Rxf4 {[%clk 0:00:48]}  Kh7 {[%clk 0:01:05]} 27. c3 {[%clk 0:00:39]}  Re8 {[%clk 0:01:04]} 28. Rdf1 {[%clk 0:00:31]}  Re7 {[%clk 0:01:02]} 29. h3 {[%clk 0:00:30]}  Rce8 {[%clk 0:01:01]} 30. Kh2 {[%clk 0:00:28]}  Bc8 {[%clk 0:01:00]} 31. R1f3 {[%clk 0:00:18]}  g5 {[%clk 0:00:54]} 32. Rxf5 {[%clk 0:00:18]}  Bxf5 {[%clk 0:00:54]} 33. Rxf5 {[%clk 0:00:19]}  g4 {[%clk 0:00:31]} 34. Rxh5+ {[%clk 0:00:17]}  Kg6 {[%clk 0:00:30]} 35. Rxd5 {[%clk 0:00:14]}  gxh3 {[%clk 0:00:30]} 36. gxh3 {[%clk 0:00:12]}  Kf7 {[%clk 0:00:26]} 37. Rf5+ {[%clk 0:00:12]}  Kg8 {[%clk 0:00:24]} 38. Rf4 {[%clk 0:00:11]}  Nd6 {[%clk 0:00:21]} 39. Rg4+ {[%clk 0:00:11]}  Kf8 {[%clk 0:00:20]} 40. Bc5 {[%clk 0:00:10]}  Re6 {[%clk 0:00:19]} 41. Bxa6 {[%clk 0:00:09]}  Ke7 {[%clk 0:00:15]} 42. Rg7+ {[%clk 0:00:06]}  Kf6 {[%clk 0:00:15]} 43. Rg2 {[%clk 0:00:05]}  Nf5 {[%clk 0:00:14]} 44. Bd3 {[%clk 0:00:00]}  Re5 {[%clk 0:00:12]} 0-1


[Site "https://www.chess.com"]

[Event "Titled Tuesday Blitz July 18 Early 2023"]
[White "Horokoskii"]
[Black "Schut, Han"]
[BlackFideId "1005561"]
[WhiteElo "2123"]
[BlackElo "2303"]
[Result "0-1"]
[Round "6"]
[TimeControl "180+2"]
[Date "2023.07.18"]
[WhiteClock "0:00:03"]
[BlackClock "0:00:20"]
[Board "180"]

1. d4 {[%clk 0:00:36]}  Nf6 {[%clk 0:02:57]} 2. c4 {[%clk 0:00:37]}  g6 {[%clk 0:02:57]} 3. Nc3 {[%clk 0:00:37]}  d5 {[%clk 0:02:58]} 4. Nf3 {[%clk 0:00:36]}  Bg7 {[%clk 0:02:58]} 5. Bf4 {[%clk 0:00:36]}  O-O {[%clk 0:02:57]} 6. e3 {[%clk 0:00:37]}  c5 {[%clk 0:02:58]} 7. dxc5 {[%clk 0:00:37]}  Qa5 {[%clk 0:02:57]} 8. Rc1 {[%clk 0:00:36]}  dxc4 {[%clk 0:02:55]} 9. Bxc4 {[%clk 0:00:35]}  Qxc5 {[%clk 0:02:56]} 10. Bb3 {[%clk 0:00:36]}  Nc6 {[%clk 0:02:56]} 11. Nd5 {[%clk 0:00:31]}  Qa5+ {[%clk 0:02:50]} 12. Qd2 {[%clk 0:00:25]}  Qxd2+ {[%clk 0:02:05]} 13. Nxd2 {[%clk 0:00:25]}  Nxd5 {[%clk 0:02:06]} 14. Bxd5 {[%clk 0:00:24]}  Bxb2 {[%clk 0:02:06]} 15. Rc2 {[%clk 0:00:22]}  Nb4 {[%clk 0:01:53]} 16. Rxb2 {[%clk 0:00:19]}  Nd3+ {[%clk 0:01:53]} 17. Ke2 {[%clk 0:00:18]}  Nxb2 {[%clk 0:01:54]} 18. Rb1 {[%clk 0:00:17]}  Na4 {[%clk 0:01:54]} 19. Bxb7 {[%clk 0:00:17]}  Nc3+ {[%clk 0:01:49]} 20. Kd3 {[%clk 0:00:16]}  Nxb1 {[%clk 0:01:49]} 21. Bxa8 {[%clk 0:00:16]}  Ba6+ {[%clk 0:01:50]} 22. Kc2 {[%clk 0:00:15]}  Na3+ {[%clk 0:01:41]} 23. Kb3 {[%clk 0:00:14]}  Rxa8 {[%clk 0:01:41]} 24. Kxa3 {[%clk 0:00:14]}  Rc8 {[%clk 0:01:31]} 25. Kb3 {[%clk 0:00:12]}  Bd3 {[%clk 0:01:27]} 26. a4 {[%clk 0:00:07]}  Rc2 {[%clk 0:01:19]} 27. e4 {[%clk 0:00:07]}  e5 {[%clk 0:01:09]} 28. Be3 {[%clk 0:00:08]}  f5 {[%clk 0:00:57]} 29. exf5 {[%clk 0:00:06]}  gxf5 {[%clk 0:00:58]} 30. Nb1 {[%clk 0:00:06]}  f4 {[%clk 0:00:54]} 31. Bxa7 {[%clk 0:00:04]}  Rc7 {[%clk 0:00:51]} 32. Bb6 {[%clk 0:00:02]}  Rb7 {[%clk 0:00:51]} 33. a5 {[%clk 0:00:01]}  Bxb1 {[%clk 0:00:51]} 34. Kb4 {[%clk 0:00:02]}  Bd3 {[%clk 0:00:48]} 35. Kc5 {[%clk 0:00:02]}  Kf7 {[%clk 0:00:46]} 36. Kc6 {[%clk 0:00:03]}  Be4+ {[%clk 0:00:47]} 37. Kd6 {[%clk 0:00:02]}  Bxg2 {[%clk 0:00:45]} 38. Kc5 {[%clk 0:00:02]}  Ke6 {[%clk 0:00:44]} 39. a6 {[%clk 0:00:02]}  Rxb6 {[%clk 0:00:38]} 40. Kxb6 {[%clk 0:00:03]}  Kf5 {[%clk 0:00:38]} 41. Kc5 {[%clk 0:00:02]}  Ba8 {[%clk 0:00:36]} 42. Kd6 {[%clk 0:00:03]}  h5 {[%clk 0:00:36]} 43. Kc5 {[%clk 0:00:03]}  h4 {[%clk 0:00:37]} 44. Kc4 {[%clk 0:00:03]}  h3 {[%clk 0:00:37]} 45. Kd3 {[%clk 0:00:03]}  Kg4 {[%clk 0:00:34]} 46. Ke2 {[%clk 0:00:03]}  e4 {[%clk 0:00:34]} 47. Kd2 {[%clk 0:00:03]}  Kf3 {[%clk 0:00:33]} 48. Ke1 {[%clk 0:00:04]}  Kg2 {[%clk 0:00:33]} 49. a7 {[%clk 0:00:04]}  Kxh2 {[%clk 0:00:33]} 50. Kf1 {[%clk 0:00:04]}  Bb7 {[%clk 0:00:29]} 51. f3 {[%clk 0:00:03]}  e3 {[%clk 0:00:23]} 52. Ke2 {[%clk 0:00:02]}  Kg2 {[%clk 0:00:22]} 53. a8=Q {[%clk 0:00:03]}  Bxa8 {[%clk 0:00:22]} 54. Ke1 {[%clk 0:00:03]}  h2 {[%clk 0:00:19]} 55. Ke2 {[%clk 0:00:03]}  Bxf3+ {[%clk 0:00:19]} 56. Ke1 {[%clk 0:00:03]}  h1=Q# {[%clk 0:00:20]} 0-1


[Site "https://www.chess.com"]

[Event "Titled Tuesday Blitz July 18 Early 2023"]
[White "Martin, Lewis"]
[Black "campochess"]
[WhiteFideId "410551"]
[WhiteElo "2294"]
[BlackElo "2123"]
[Result "0-1"]
[Round "6"]
[TimeControl "180+2"]
[Date "2023.07.18"]
[WhiteClock "0:01:29"]
[BlackClock "0:01:02"]
[Board "181"]

1. e4 {[%clk 0:02:59]}  c5 {[%clk 0:02:28]} 2. Nf3 {[%clk 0:02:59]}  Nc6 {[%clk 0:02:27]} 3. d4 {[%clk 0:02:57]}  cxd4 {[%clk 0:02:27]} 4. Nxd4 {[%clk 0:02:58]}  e5 {[%clk 0:02:27]} 5. Nb5 {[%clk 0:02:58]}  a6 {[%clk 0:02:27]} 6. Nd6+ {[%clk 0:02:56]}  Bxd6 {[%clk 0:02:27]} 7. Qxd6 {[%clk 0:02:56]}  Qe7 {[%clk 0:02:27]} 8. Qd1 {[%clk 0:02:53]}  Nf6 {[%clk 0:02:26]} 9. Nc3 {[%clk 0:02:53]}  d6 {[%clk 0:02:26]} 10. Be2 {[%clk 0:02:48]}  h6 {[%clk 0:02:25]} 11. Be3 {[%clk 0:02:47]}  Be6 {[%clk 0:02:24]} 12. O-O {[%clk 0:02:46]}  Rd8 {[%clk 0:02:24]} 13. Bf3 {[%clk 0:02:43]}  O-O {[%clk 0:02:21]} 14. Qd2 {[%clk 0:02:42]}  Nh7 {[%clk 0:02:17]} 15. Rad1 {[%clk 0:02:39]}  Qh4 {[%clk 0:02:13]} 16. g3 {[%clk 0:02:36]}  Qe7 {[%clk 0:02:12]} 17. Bg2 {[%clk 0:02:34]}  b5 {[%clk 0:02:02]} 18. Nd5 {[%clk 0:02:30]}  Bxd5 {[%clk 0:02:01]} 19. exd5 {[%clk 0:02:30]}  Nb8 {[%clk 0:01:58]} 20. f4 {[%clk 0:02:23]}  Nd7 {[%clk 0:01:51]} 21. f5 {[%clk 0:02:21]}  Ndf6 {[%clk 0:01:49]} 22. b3 {[%clk 0:02:20]}  Rc8 {[%clk 0:01:47]} 23. h3 {[%clk 0:02:09]}  Qc7 {[%clk 0:01:45]} 24. Rc1 {[%clk 0:02:09]}  Qc3 {[%clk 0:01:44]} 25. Qxc3 {[%clk 0:02:08]}  Rxc3 {[%clk 0:01:43]} 26. Kf2 {[%clk 0:02:05]}  Rfc8 {[%clk 0:01:42]} 27. Rfd1 {[%clk 0:01:58]}  Rxc2+ {[%clk 0:01:39]} 28. Rxc2 {[%clk 0:01:58]}  Rxc2+ {[%clk 0:01:39]} 29. Rd2 {[%clk 0:01:59]}  Rxd2+ {[%clk 0:01:36]} 30. Bxd2 {[%clk 0:02:00]}  Kf8 {[%clk 0:01:30]} 31. Bb4 {[%clk 0:01:54]}  Ke7 {[%clk 0:01:29]} 32. g4 {[%clk 0:01:48]}  Nf8 {[%clk 0:01:26]} 33. Ke3 {[%clk 0:01:48]}  Kd7 {[%clk 0:01:23]} 34. Ba5 {[%clk 0:01:42]}  Kc8 {[%clk 0:01:18]} 35. a4 {[%clk 0:01:42]}  N8d7 {[%clk 0:01:16]} 36. Kd3 {[%clk 0:01:39]}  Kb7 {[%clk 0:01:14]} 37. Kc3 {[%clk 0:01:35]}  bxa4 {[%clk 0:01:07]} 38. bxa4 {[%clk 0:01:35]}  Nc5 {[%clk 0:01:07]} 39. Kb4 {[%clk 0:01:32]}  Nd3+ {[%clk 0:01:03]} 40. Kc3 {[%clk 0:01:33]}  Nf4 {[%clk 0:01:03]} 41. Bf1 {[%clk 0:01:31]}  N6xd5+ {[%clk 0:01:03]} 42. Kc4 {[%clk 0:01:29]}  Ne3+ {[%clk 0:01:02]} 0-1


[Site "https://www.chess.com"]

[Event "Titled Tuesday Blitz July 18 Early 2023"]
[White "Feliz Dotel, Dewar Bienvenido"]
[Black "Magallanes, Rey Jomar"]
[WhiteFideId "6402801"]
[BlackFideId "5205948"]
[WhiteElo "2045"]
[BlackElo "2269"]
[Result "1-0"]
[Round "6"]
[TimeControl "180+2"]
[Date "2023.07.18"]
[WhiteClock "0:00:06"]
[BlackClock "0:01:40"]
[Board "184"]

1. d4 {[%clk 0:02:39]}  d5 {[%clk 0:02:59]} 2. e3 {[%clk 0:02:34]}  Nf6 {[%clk 0:02:58]} 3. Nf3 {[%clk 0:02:32]}  e6 {[%clk 0:02:59]} 4. Bd3 {[%clk 0:02:29]}  Bd6 {[%clk 0:02:58]} 5. O-O {[%clk 0:02:27]}  O-O {[%clk 0:02:58]} 6. b3 {[%clk 0:02:27]}  b6 {[%clk 0:02:57]} 7. Bb2 {[%clk 0:02:19]}  Bb7 {[%clk 0:02:57]} 8. Nbd2 {[%clk 0:02:10]}  Nbd7 {[%clk 0:02:57]} 9. Ne5 {[%clk 0:01:41]}  Ne4 {[%clk 0:02:53]} 10. Nxd7 {[%clk 0:01:31]}  Nxd2 {[%clk 0:02:49]} 11. Nxf8 {[%clk 0:01:21]}  Nxf1 {[%clk 0:02:50]} 12. Nxe6 {[%clk 0:01:07]}  Bxh2+ {[%clk 0:02:19]} 13. Kxf1 {[%clk 0:00:55]}  fxe6 {[%clk 0:02:20]} 14. Qh5 {[%clk 0:00:40]}  Qd6 {[%clk 0:02:12]} 15. Bxh7+ {[%clk 0:00:27]}  Kf8 {[%clk 0:02:12]} 16. g3 {[%clk 0:00:07]}  Ke7 {[%clk 0:01:47]} 17. Qxh2 {[%clk 0:00:05]}  Ba6+ {[%clk 0:01:42]} 18. Kg2 {[%clk 0:00:04]}  Rh8 {[%clk 0:01:42]} 19. a4 {[%clk 0:00:03]}  Be2 {[%clk 0:01:41]} 20. Ba3 {[%clk 0:00:02]}  Kd7 {[%clk 0:01:40]} 21. Bxd6 {[%clk 0:00:01]}  cxd6 {[%clk 0:01:41]} 22. Qh4 {[%clk 0:00:01]}  Bg4 {[%clk 0:01:41]} 23. Qxg4 {[%clk 0:00:01]}  Rxh7 {[%clk 0:01:42]} 24. Rb1 {[%clk 0:00:01]}  Kc7 {[%clk 0:01:40]} 25. Rh1 {[%clk 0:00:02]}  Rh4 {[%clk 0:01:37]} 26. Rxh4 {[%clk 0:00:02]}  g5 {[%clk 0:01:38]} 27. Qxg5 {[%clk 0:00:02]}  Kc6 {[%clk 0:01:39]} 28. Rh6 {[%clk 0:00:03]}  e5 {[%clk 0:01:39]} 29. Qg6 {[%clk 0:00:04]}  Kb7 {[%clk 0:01:38]} 30. Qxd6 {[%clk 0:00:05]}  Ka6 {[%clk 0:01:39]} 31. Qc6 {[%clk 0:00:06]}  Ka5 {[%clk 0:01:40]} 32. Qb5# {[%clk 0:00:06]} 1-0


[Site "https://www.chess.com"]

[Event "Titled Tuesday Blitz July 18 Early 2023"]
[White "Goughfather"]
[Black "arturdailima"]
[WhiteElo "2013"]
[BlackElo "2261"]
[Result "0-1"]
[Round "6"]
[TimeControl "180+2"]
[Date "2023.07.18"]
[WhiteClock "0:00:00"]
[BlackClock "0:00:54"]
[Board "185"]

1. d4 {[%clk 0:03:00]}  Nf6 {[%clk 0:03:00]} 2. Nc3 {[%clk 0:03:00]}  d5 {[%clk 0:02:59]} 3. Bf4 {[%clk 0:03:00]}  a6 {[%clk 0:02:59]} 4. e3 {[%clk 0:02:59]}  c5 {[%clk 0:02:59]} 5. dxc5 {[%clk 0:02:51]}  Nc6 {[%clk 0:02:54]} 6. a3 {[%clk 0:02:46]}  e5 {[%clk 0:02:52]} 7. Bg5 {[%clk 0:02:47]}  Be6 {[%clk 0:02:50]} 8. b4 {[%clk 0:02:41]}  Be7 {[%clk 0:02:47]} 9. Nf3 {[%clk 0:02:24]}  d4 {[%clk 0:02:43]} 10. Bxf6 {[%clk 0:02:06]}  Bxf6 {[%clk 0:02:28]} 11. exd4 {[%clk 0:02:01]}  exd4 {[%clk 0:02:28]} 12. Ne4 {[%clk 0:01:56]}  O-O {[%clk 0:02:28]} 13. Bd3 {[%clk 0:01:51]}  Re8 {[%clk 0:02:19]} 14. O-O {[%clk 0:01:36]}  a5 {[%clk 0:02:10]} 15. b5 {[%clk 0:01:25]}  Ne5 {[%clk 0:02:09]} 16. Nxe5 {[%clk 0:01:07]}  Bxe5 {[%clk 0:02:08]} 17. Qh5 {[%clk 0:01:07]}  Qd5 {[%clk 0:02:01]} 18. f4 {[%clk 0:00:29]}  Bc7 {[%clk 0:01:37]} 19. Qxd5 {[%clk 0:00:11]}  Bxd5 {[%clk 0:01:38]} 20. Ng5 {[%clk 0:00:11]}  h6 {[%clk 0:01:37]} 21. Nh3 {[%clk 0:00:09]}  Rac8 {[%clk 0:01:25]} 22. Rae1 {[%clk 0:00:08]}  Rxe1 {[%clk 0:01:19]} 23. Rxe1 {[%clk 0:00:09]}  Kf8 {[%clk 0:01:20]} 24. Bf5 {[%clk 0:00:05]}  Rd8 {[%clk 0:01:16]} 25. b6 {[%clk 0:00:05]}  Bb8 {[%clk 0:01:14]} 26. Rd1 {[%clk 0:00:05]}  Bc4 {[%clk 0:01:10]} 27. c3 {[%clk 0:00:05]}  d3 {[%clk 0:01:10]} 28. Nf2 {[%clk 0:00:05]}  Bxf4 {[%clk 0:01:09]} 29. Ne4 {[%clk 0:00:05]}  Be3+ {[%clk 0:01:07]} 30. Kh1 {[%clk 0:00:04]}  g6 {[%clk 0:01:03]} 31. Bg4 {[%clk 0:00:04]}  f5 {[%clk 0:01:01]} 32. Nd6 {[%clk 0:00:04]}  Rxd6 {[%clk 0:00:56]} 33. cxd6 {[%clk 0:00:05]}  fxg4 {[%clk 0:00:57]} 34. Rf1+ {[%clk 0:00:04]}  Ke8 {[%clk 0:00:56]} 35. Re1 {[%clk 0:00:00]}  Kd7 {[%clk 0:00:54]} 0-1


[Site "https://www.chess.com"]

[Event "Titled Tuesday Blitz July 18 Early 2023"]
[White "Zaichenko, Daria"]
[Black "Penagalapati, Abhinav"]
[WhiteFideId "4197453"]
[BlackFideId "30938210"]
[WhiteElo "2252"]
[BlackElo "2056"]
[Result "1-0"]
[Round "6"]
[TimeControl "180+2"]
[Date "2023.07.18"]
[WhiteClock "0:00:15"]
[BlackClock "0:00:07"]
[Board "186"]

1. e4 {[%clk 0:02:56]}  Nf6 {[%clk 0:03:00]} 2. e5 {[%clk 0:02:56]}  Nd5 {[%clk 0:03:00]} 3. d4 {[%clk 0:02:57]}  d6 {[%clk 0:02:59]} 4. c4 {[%clk 0:02:53]}  Nb6 {[%clk 0:02:59]} 5. Nf3 {[%clk 0:02:54]}  g6 {[%clk 0:02:48]} 6. Nc3 {[%clk 0:02:51]}  Bg7 {[%clk 0:02:48]} 7. exd6 {[%clk 0:02:47]}  exd6 {[%clk 0:02:45]} 8. Be2 {[%clk 0:02:48]}  O-O {[%clk 0:02:45]} 9. O-O {[%clk 0:02:46]}  Nc6 {[%clk 0:02:46]} 10. Be3 {[%clk 0:02:43]}  Re8 {[%clk 0:02:44]} 11. Qd2 {[%clk 0:02:41]}  Bg4 {[%clk 0:02:44]} 12. b3 {[%clk 0:02:40]}  Qd7 {[%clk 0:02:42]} 13. d5 {[%clk 0:02:33]}  Bxf3 {[%clk 0:02:36]} 14. Bxf3 {[%clk 0:02:28]}  Ne5 {[%clk 0:02:36]} 15. Be2 {[%clk 0:02:29]}  Nc8 {[%clk 0:02:23]} 16. Rac1 {[%clk 0:02:23]}  Ne7 {[%clk 0:02:20]} 17. f3 {[%clk 0:02:13]}  Nf5 {[%clk 0:02:15]} 18. Bf2 {[%clk 0:02:12]}  f6 {[%clk 0:02:07]} 19. f4 {[%clk 0:02:06]}  Nf7 {[%clk 0:02:06]} 20. Bd3 {[%clk 0:02:01]}  Ne7 {[%clk 0:02:02]} 21. Rce1 {[%clk 0:01:56]}  a6 {[%clk 0:01:54]} 22. Bd4 {[%clk 0:01:52]}  Nf5 {[%clk 0:01:52]} 23. Bf2 {[%clk 0:01:40]}  Rxe1 {[%clk 0:01:38]} 24. Rxe1 {[%clk 0:01:38]}  Kf8 {[%clk 0:01:37]} 25. g4 {[%clk 0:01:20]}  Ne7 {[%clk 0:01:35]} 26. h3 {[%clk 0:01:20]}  Re8 {[%clk 0:01:34]} 27. Re6 {[%clk 0:01:18]}  Nd8 {[%clk 0:01:32]} 28. Re2 {[%clk 0:01:16]}  Ng8 {[%clk 0:01:28]} 29. Bd4 {[%clk 0:01:11]}  Nf7 {[%clk 0:01:19]} 30. Ne4 {[%clk 0:01:09]}  Nd8 {[%clk 0:00:59]} 31. Qb2 {[%clk 0:01:07]}  Qf7 {[%clk 0:00:59]} 32. g5 {[%clk 0:00:56]}  f5 {[%clk 0:00:41]} 33. Ng3 {[%clk 0:00:51]}  Rxe2 {[%clk 0:00:39]} 34. Nxe2 {[%clk 0:00:43]}  h6 {[%clk 0:00:38]} 35. h4 {[%clk 0:00:40]}  hxg5 {[%clk 0:00:38]} 36. hxg5 {[%clk 0:00:41]}  Qe7 {[%clk 0:00:37]} 37. Kf2 {[%clk 0:00:37]}  b6 {[%clk 0:00:37]} 38. b4 {[%clk 0:00:34]}  Nb7 {[%clk 0:00:37]} 39. a4 {[%clk 0:00:32]}  a5 {[%clk 0:00:33]} 40. Bxg7+ {[%clk 0:00:18]}  Qxg7 {[%clk 0:00:32]} 41. Qb3 {[%clk 0:00:16]}  axb4 {[%clk 0:00:29]} 42. Qxb4 {[%clk 0:00:17]}  Nc5 {[%clk 0:00:28]} 43. Bc2 {[%clk 0:00:17]}  Ne7 {[%clk 0:00:24]} 44. a5 {[%clk 0:00:17]}  bxa5 {[%clk 0:00:22]} 45. Qb8+ {[%clk 0:00:17]}  Kf7 {[%clk 0:00:19]} 46. Qxc7 {[%clk 0:00:17]}  Qb2 {[%clk 0:00:18]} 47. Qxd6 {[%clk 0:00:17]}  Qxc2 {[%clk 0:00:12]} 48. Qxc5 {[%clk 0:00:18]}  a4 {[%clk 0:00:11]} 49. d6 {[%clk 0:00:18]}  Ng8 {[%clk 0:00:07]} 50. d7 {[%clk 0:00:18]}  Qd3 {[%clk 0:00:08]} 51. Qc6 {[%clk 0:00:16]}  Ne7 {[%clk 0:00:07]} 52. Qf6+ {[%clk 0:00:15]}  Kg8 {[%clk 0:00:07]} 53. Qxe7 {[%clk 0:00:15]} 1-0


[Site "https://www.chess.com"]

[Event "Titled Tuesday Blitz July 18 Early 2023"]
[White "Skiadopoulos, Nikolaos"]
[Black "Granados Diaz, Maria Esther"]
[WhiteFideId "4200772"]
[BlackFideId "6101488"]
[WhiteElo "1903"]
[BlackElo "2245"]
[Result "1-0"]
[Round "6"]
[TimeControl "180+2"]
[Date "2023.07.18"]
[WhiteClock "0:00:12"]
[BlackClock "0:00:23"]
[Board "188"]

1. e4 {[%clk 0:03:00]}  c5 {[%clk 0:03:00]} 2. d4 {[%clk 0:02:57]}  Nc6 {[%clk 0:03:01]} 3. d5 {[%clk 0:02:56]}  Nb8 {[%clk 0:03:01]} 4. Be3 {[%clk 0:02:44]}  d6 {[%clk 0:03:01]} 5. Bb5+ {[%clk 0:02:42]}  Bd7 {[%clk 0:03:01]} 6. a4 {[%clk 0:02:38]}  Nf6 {[%clk 0:02:59]} 7. Nc3 {[%clk 0:02:35]}  g6 {[%clk 0:02:58]} 8. e5 {[%clk 0:02:29]}  dxe5 {[%clk 0:02:44]} 9. Bxc5 {[%clk 0:02:28]}  Bxb5 {[%clk 0:02:33]} 10. axb5 {[%clk 0:02:27]}  b6 {[%clk 0:02:29]} 11. Be3 {[%clk 0:02:20]}  Nbd7 {[%clk 0:02:27]} 12. Nf3 {[%clk 0:02:18]}  Bg7 {[%clk 0:02:27]} 13. O-O {[%clk 0:02:17]}  O-O {[%clk 0:02:27]} 14. h3 {[%clk 0:02:14]}  Qc7 {[%clk 0:02:26]} 15. Qd2 {[%clk 0:02:12]}  Rfd8 {[%clk 0:02:21]} 16. Bh6 {[%clk 0:02:10]}  Nc5 {[%clk 0:02:14]} 17. Bxg7 {[%clk 0:02:08]}  Kxg7 {[%clk 0:02:15]} 18. Rfe1 {[%clk 0:01:59]}  e4 {[%clk 0:01:55]} 19. Nd4 {[%clk 0:01:45]}  Nxd5 {[%clk 0:01:28]} 20. Nxe4 {[%clk 0:01:42]}  Nxe4 {[%clk 0:01:13]} 21. Rxe4 {[%clk 0:01:40]}  e5 {[%clk 0:01:10]} 22. Nc6 {[%clk 0:01:36]}  Nf6 {[%clk 0:01:10]} 23. Qe3 {[%clk 0:01:19]}  Nxe4 {[%clk 0:01:01]} 24. Nxd8 {[%clk 0:01:09]}  Rxd8 {[%clk 0:00:40]} 25. Qxe4 {[%clk 0:01:08]}  Qc5 {[%clk 0:00:31]} 26. Rxa7 {[%clk 0:00:54]}  Rd1+ {[%clk 0:00:25]} 27. Kh2 {[%clk 0:00:53]}  Qxf2 {[%clk 0:00:18]} 28. Qxe5+ {[%clk 0:00:50]}  Kh6 {[%clk 0:00:18]} 29. Ra4 {[%clk 0:00:21]}  Rg1 {[%clk 0:00:15]} 30. Qf4+ {[%clk 0:00:17]}  Qxf4+ {[%clk 0:00:15]} 31. Rxf4 {[%clk 0:00:16]}  f5 {[%clk 0:00:15]} 32. Kxg1 {[%clk 0:00:16]}  Kg5 {[%clk 0:00:14]} 33. Rf3 {[%clk 0:00:15]}  h5 {[%clk 0:00:15]} 34. Kf2 {[%clk 0:00:16]}  Kf6 {[%clk 0:00:15]} 35. g3 {[%clk 0:00:16]}  g5 {[%clk 0:00:16]} 36. Rc3 {[%clk 0:00:16]}  Ke5 {[%clk 0:00:17]} 37. Rc6 {[%clk 0:00:17]}  g4 {[%clk 0:00:17]} 38. Rxb6 {[%clk 0:00:17]}  gxh3 {[%clk 0:00:18]} 39. Rh6 {[%clk 0:00:16]}  f4 {[%clk 0:00:18]} 40. Rxh5+ {[%clk 0:00:15]}  Ke4 {[%clk 0:00:18]} 41. gxf4 {[%clk 0:00:15]}  h2 {[%clk 0:00:19]} 42. Rxh2 {[%clk 0:00:15]}  Kxf4 {[%clk 0:00:20]} 43. b6 {[%clk 0:00:14]}  Kg4 {[%clk 0:00:21]} 44. b7 {[%clk 0:00:14]}  Kf4 {[%clk 0:00:22]} 45. b8=Q+ {[%clk 0:00:14]}  Kg4 {[%clk 0:00:23]} 46. Qf8 {[%clk 0:00:12]}  Kg5 {[%clk 0:00:22]} 47. Rg2+ {[%clk 0:00:12]}  Kh4 {[%clk 0:00:23]} 48. Qh6# {[%clk 0:00:12]} 1-0


[Site "https://www.chess.com"]

[Event "Titled Tuesday Blitz July 18 Early 2023"]
[White "Corredor Castellanos, Camilo"]
[Black "Gyulamiryan-koryun"]
[WhiteFideId "4425871"]
[WhiteElo "2407"]
[BlackElo "1866"]
[Result "1-0"]
[Round "6"]
[TimeControl "180+2"]
[Date "2023.07.18"]
[WhiteClock "0:00:20"]
[BlackClock "0:00:03"]
[Board "190"]

1. e4 {[%clk 0:03:00]}  c6 {[%clk 0:02:58]} 2. Nf3 {[%clk 0:03:00]}  d5 {[%clk 0:02:58]} 3. d3 {[%clk 0:03:00]}  Bg4 {[%clk 0:02:55]} 4. h3 {[%clk 0:02:56]}  Bh5 {[%clk 0:02:53]} 5. Qe2 {[%clk 0:02:57]}  Nf6 {[%clk 0:02:51]} 6. e5 {[%clk 0:02:51]}  Nfd7 {[%clk 0:02:37]} 7. g4 {[%clk 0:02:49]}  Bg6 {[%clk 0:02:36]} 8. h4 {[%clk 0:02:36]}  h5 {[%clk 0:02:33]} 9. e6 {[%clk 0:02:35]}  fxe6 {[%clk 0:02:30]} 10. Ng5 {[%clk 0:02:34]}  Nf6 {[%clk 0:02:21]} 11. Nxe6 {[%clk 0:02:29]}  Qd7 {[%clk 0:02:14]} 12. g5 {[%clk 0:02:20]}  Ng4 {[%clk 0:02:05]} 13. f3 {[%clk 0:02:16]}  Qd6 {[%clk 0:01:31]} 14. Bf4 {[%clk 0:02:04]}  Qb4+ {[%clk 0:01:19]} 15. c3 {[%clk 0:02:03]}  Qb6 {[%clk 0:01:15]} 16. fxg4 {[%clk 0:02:00]}  Na6 {[%clk 0:01:13]} 17. Bh3 {[%clk 0:01:50]}  Bf7 {[%clk 0:00:45]} 18. Nxf8 {[%clk 0:01:24]}  Kxf8 {[%clk 0:00:34]} 19. Rf1 {[%clk 0:01:24]}  hxg4 {[%clk 0:00:23]} 20. Bxg4 {[%clk 0:01:22]}  Kg8 {[%clk 0:00:19]} 21. g6 {[%clk 0:01:15]}  Bxg6 {[%clk 0:00:16]} 22. Be6+ {[%clk 0:01:15]}  Kh7 {[%clk 0:00:12]} 23. h5 {[%clk 0:01:15]}  Be8 {[%clk 0:00:07]} 24. Bf5+ {[%clk 0:01:13]}  Kg8 {[%clk 0:00:06]} 25. Be6+ {[%clk 0:01:13]}  Kh7 {[%clk 0:00:06]} 26. d4 {[%clk 0:01:02]}  Rf8 {[%clk 0:00:06]} 27. Na3 {[%clk 0:00:49]}  c5 {[%clk 0:00:05]} 28. O-O-O {[%clk 0:00:47]}  Rf6 {[%clk 0:00:03]} 29. Bxd5 {[%clk 0:00:41]}  cxd4 {[%clk 0:00:03]} 30. Rxd4 {[%clk 0:00:39]}  Rc8 {[%clk 0:00:02]} 31. Qd3+ {[%clk 0:00:36]}  Kh8 {[%clk 0:00:02]} 32. Nc4 {[%clk 0:00:22]}  Qc5 {[%clk 0:00:01]} 33. h6 {[%clk 0:00:20]}  Nb4 {[%clk 0:00:01]} 34. cxb4 {[%clk 0:00:19]}  Qxb4 {[%clk 0:00:02]} 35. hxg7+ {[%clk 0:00:19]}  Kxg7 {[%clk 0:00:02]} 36. Rg1+ {[%clk 0:00:19]}  Bg6 {[%clk 0:00:03]} 37. Rxg6+ {[%clk 0:00:19]}  Rxg6 {[%clk 0:00:03]} 38. Be5+ {[%clk 0:00:19]}  Kh7 {[%clk 0:00:03]} 39. Rh4# {[%clk 0:00:20]} 1-0


[Site "https://www.chess.com"]